bitfinex/quotes_ETHUSD_20220123
["timestamp","ask_amount","ask_price","bid_price","bid_amount"]
[1642972215424,0.13819997,2411.5,2410.5,24.27]
[1642972215621,0.13819997,2411.5,2410.5,24.57]
[1642972215910,0.13819997,2411.5,2410.9,1.40900786]
[1642972216099,6.21238811,2411.9,2410.9,1.19007205]
[1642972216305,3.9312,2411.9,2410.9,1.19007205]
[1642972216503,4.2312,2411.9,2410.5,24.57]
[1642972216706,1.0,2411.6,2410.5,24.57]
[1642972217103,1.3,2411.6,2410.5,24.57]
[1642972217304,1.3,2411.6,2410.5,24.27]
[1642972217508,0.3,2411.6,2411.2,1.3550534]
[1642972217812,16.544,2412.2,2411.2,1.3550534]
[1642972217813,12.8839,2412.2,2411.2,1.3550534]
[1642972218006,0.01281902,2412.3,2411.2,1.6550534]
[1642972218307,0.01281902,2412.3,2411.0,0.597]
[1642972218610,0.01281902,2412.3,2410.7,0.20626]
[1642972218611,0.08685181,2412.2,2410.4,0.16768244]
[1642972218808,0.08685181,2412.2,2410.2,0.00188244]
[1642972218809,0.01243877,2411.7,2410.2,0.00188244]
[1642972219007,1.63517,2411.6,2410.2,0.00188244]
[1642972219207,5.7458,2411.5,2410.2,0.00188244]
[1642972219408,0.597,2411.4,2410.0,1.15294552]
[1642972219627,1.0,2410.7,2410.0,1.15294552]
[1642972219829,1.3,2410.7,2410.0,1.15294552]
[1642972220434,1.3,2410.7,2409.6,24.27]
[1642972220631,1.3,2410.7,2409.6,24.57]
[1642972220929,1.3,2410.7,2409.7,24.27]
[1642972221330,1.3,2410.7,2409.7,24.57]
[1642972221530,1.3,2410.7,2409.9,1.4786297]
[1642972221929,1.3,2410.7,2409.9,26.0486297]
[1642972222132,1.3,2410.7,2409.9,1.7786297]
[1642972222435,1.0,2410.4,2409.1,4.33844244]
[1642972222635,1.60934458,2410.4,2409.1,0.1658]
[1642972223034,1.0,2410.0,2409.1,0.1658]
[1642972223232,1.0,2410.0,2408.8,0.20626]
[1642972223477,1.3,2410.0,2409.4,1.32200764]
[1642972225178,0.498,2410.3,2409.1,1.14628025]
[1642972225179,1.498,2410.3,2409.1,1.14628025]
[1642972225379,1.498,2410.3,2409.1,0.3]
[1642972225584,1.798,2410.3,2408.9,24.57]
[1642972225881,2.3042063,2410.2,2408.9,24.57]
[1642972226079,1.798,2410.3,2408.9,0.3]
[1642972226281,2.27772202,2410.2,2408.8,24.77626]
[1642972226484,2.27772202,2410.2,2408.8,0.20626]
[1642972226783,1.3,2409.9,2408.5,0.37226]
[1642972226984,1.3,2409.9,2408.5,0.20626]
[1642972226985,2.66390633,2409.8,2408.5,0.20626]
[1642972227433,6.61870633,2409.8,2408.5,0.20626]
[1642972227632,6.61870633,2409.8,2408.8,1.18747401]
[1642972227831,3.9548,2409.8,2408.8,1.18747401]
[1642972228038,6.1936282,2409.8,2408.8,1.18747401]
[1642972228237,6.18755024,2409.8,2408.8,1.18747401]
[1642972228433,6.20284687,2409.8,2408.8,1.18747401]
[1642972228636,3.9548,2409.8,2408.8,1.18747401]
[1642972229036,6.28011645,2409.8,2408.8,1.18747401]
[1642972229235,3.9548,2409.8,2408.8,1.13747401]
[1642972229433,6.20368115,2409.8,2408.8,1.13747401]
[1642972230133,6.19399523,2409.8,2408.8,25.40747401]
[1642972230333,6.19502761,2409.8,2408.8,25.40747401]
[1642972230533,3.9548,2409.8,2408.8,1.13747401]
[1642972230738,6.29157685,2409.8,2408.8,1.13747401]
[1642972231194,3.9548,2409.8,2408.8,1.13747401]
[1642972232497,2.32454361,2409.7,2408.8,1.13747401]
[1642972232897,2.62454361,2409.7,2408.8,1.13747401]
[1642972235436,0.3,2409.7,2408.8,1.13747401]
[1642972235841,4.2548,2409.8,2408.8,1.13747401]
[1642972236058,2.26655052,2409.7,2408.8,1.13747401]
[1642972236240,4.2548,2409.8,2408.8,1.13747401]
[1642972237140,4.2548,2409.8,2408.9,24.27]
[1642972238145,3.9548,2409.8,2408.8,1.13747401]
[1642972238395,0.15054455,2410.4,2408.9,26.55185328]
[1642972238588,0.13819997,2410.4,2409.0,0.20626]
[1642972239487,0.43819997,2410.4,2409.0,1.07226949]
[1642972239688,0.33819997,2410.4,2409.6,1.43604077]
[1642972239889,0.33819997,2410.4,2409.6,1.22225331]
[1642972239890,0.13819997,2410.4,2409.6,1.22225331]
[1642972240287,0.13819997,2410.4,2409.6,25.49225331]
[1642972240893,0.13819997,2410.4,2409.6,1.22225331]
[1642972241090,0.13819997,2410.4,2409.1,0.20626]
[1642972241091,0.13819997,2410.4,2409.1,3.6509]
[1642972241291,4.06072859,2410.4,2408.9,0.1658]
[1642972241489,0.93619997,2410.4,2408.9,0.1658]
[1642972241689,1.0,2410.3,2408.9,0.1658]
[1642972241895,3.92252862,2410.1,2408.9,0.1658]
[1642972242130,3.92252862,2410.0,2409.1,1.16769304]
[1642972242332,3.92252862,2410.0,2409.1,1.12114421]
[1642972242533,4.22252862,2410.0,2409.1,1.12114421]
[1642972242735,4.22252862,2410.0,2408.6,3.8657]
[1642972242944,4.22252862,2410.0,2408.4,3.1701]
[1642972242945,4.92252862,2409.7,2408.4,3.1701]
[1642972243140,4.92252862,2409.7,2408.4,0.02]
[1642972243141,0.498,2409.6,2408.4,0.02]
[1642972243339,4.42052862,2409.6,2408.4,0.02]
[1642972243745,0.498,2409.6,2409.1,1.13642847]
[1642972243947,3.8535,2409.9,2409.5,1.16475429]
[1642972244145,0.36868969,2410.3,2409.5,1.16475429]
[1642972244146,3.92252862,2410.1,2409.5,1.16475429]
[1642972244342,3.92252862,2410.1,2409.2,24.27]
[1642972244742,3.92252862,2410.0,2409.8,1.18131254]
[1642972244941,0.13819997,2410.4,2409.8,0.67730152]
[1642972245142,5.16245477,2410.4,2409.8,0.67730152]
[1642972245341,4.01940384,2410.0,2409.8,0.67730152]
[1642972245975,4.01940384,2410.2,2409.8,0.67730152]
[1642972246575,4.01940384,2410.1,2409.8,0.67730152]
[1642972247375,4.01940384,2410.0,2409.2,0.91581408]
[1642972247574,0.3,2410.1,2409.2,0.91581408]
[1642972247575,4.01940384,2409.9,2409.2,0.91581408]
[1642972247779,4.01940384,2410.0,2409.2,0.91581408]
[1642972248386,4.01940384,2410.0,2409.3,1.31406158]
[1642972248582,0.3,2410.1,2409.4,24.27]
[1642972248583,4.31940384,2410.1,2409.4,24.27]
[1642972248788,4.31940384,2410.1,2409.9,1.27630075]
[1642972248984,4.01940384,2410.0,2409.9,1.27630075]
[1642972249184,4.01940384,2410.1,2410.0,3.88333641]
[1642972249384,4.01940384,2410.2,2409.9,1.27630075]
[1642972250627,4.01940384,2410.4,2409.9,1.27630075]
[1642972250828,4.01940384,2410.4,2409.5,0.20626]
[1642972251029,4.01940384,2410.2,2409.6,0.3]
[1642972251430,4.01940384,2410.2,2409.5,0.20626]
[1642972252231,4.01940384,2410.2,2409.7,1.32450291]
[1642972252432,4.01940384,2410.2,2409.5,0.20626]
[1642972252634,5.0242548,2410.6,2409.3,0.20626]
[1642972252635,4.01940384,2409.9,2409.3,0.20626]
[1642972253031,4.01940384,2409.8,2409.3,0.20626]
[1642972253480,0.01270964,2410.4,2409.5,1.36817788]
[1642972253481,4.01940384,2409.9,2409.5,1.36817788]
[1642972254087,4.01940384,2410.1,2409.5,1.36817788]
[1642972255081,4.01940384,2410.0,2409.5,1.18809597]
[1642972257521,4.01940384,2410.0,2409.5,25.45809597]
[1642972257723,4.01940384,2410.0,2409.5,1.18809597]
[1642972258126,5.3242548,2410.4,2409.5,1.18809597]
[1642972258127,4.01940384,2410.1,2409.5,1.18809597]
[1642972258329,4.01940384,2410.0,2409.5,1.18809597]
[1642972258928,4.01940384,2410.0,2409.9,6.65582679]
[1642972259134,5.0242548,2410.4,2410.0,4.0]
[1642972259339,5.0242548,2410.6,2410.1,0.20626]
[1642972259533,5.0242548,2410.6,2410.0,29.38645117]
[1642972259534,5.0242548,2410.7,2410.0,29.68645117]
[1642972259731,5.0242548,2410.7,2410.0,25.68645117]
[1642972260330,5.0242548,2410.7,2410.5,1.31719883]
[1642972260533,7.43,2410.8,2410.5,0.49664931]
[1642972260534,5.0242548,2410.6,2410.5,0.49664931]
[1642972260730,5.02327716,2410.6,2410.0,24.57]
[1642972261775,7.43,2410.8,2410.0,24.57]
[1642972261982,0.93769892,2410.6,2410.4,1.18937767]
[1642972262183,0.93769892,2410.6,2410.0,0.3]
[1642972262581,0.93769892,2410.6,2409.9,0.20626]
[1642972262984,1.23769892,2410.6,2409.6,0.1658]
[1642972263187,2.0,2410.5,2409.7,1.27967486]
[1642972263388,2.0,2410.5,2409.6,0.1658]
[1642972263389,1.73569892,2410.6,2409.6,0.1658]
[1642972263688,6.6990064,2410.4,2409.6,0.1658]
[1642972263887,0.01293314,2410.2,2409.6,0.1658]
[1642972264292,0.83208889,2410.1,2409.6,0.1658]
[1642972264492,1.13208889,2410.1,2409.6,0.1658]
[1642972264949,2.13208889,2410.1,2409.6,0.1658]
[1642972265150,8.83109529,2410.1,2408.8,1.1849]
[1642972265348,9.6758153,2410.0,2408.6,24.27]
[1642972265650,1.0,2409.9,2408.6,24.27]
[1642972265848,2.54798255,2409.8,2408.6,24.27]
[1642972266048,1.05570378,2409.2,2408.6,25.29100999]
[1642972266249,3.0434,2409.7,2409.0,1.33910248]
[1642972266651,3.3434,2409.7,2409.0,1.33910248]
[1642972266948,5.03331577,2409.5,2409.0,1.33910248]
[1642972267350,5.97591311,2409.5,2409.0,1.33910248]
[1642972267548,0.94259734,2409.5,2409.0,1.33910248]
[1642972268380,0.93470567,2409.5,2409.0,25.60910248]
[1642972269191,0.93470567,2409.5,2409.0,1.33910248]
[1642972270885,5.96802144,2409.5,2409.0,1.33910248]
[1642972271688,5.96802144,2409.5,2408.7,24.27]
[1642972271888,2.20675209,2409.4,2408.7,24.27]
[1642972272142,5.96802144,2409.5,2408.7,24.27]
[1642972272944,5.96802144,2409.5,2408.8,1.26903557]
[1642972273347,0.89198705,2409.0,2408.7,24.27]
[1642972274346,2.59121245,2409.7,2408.7,24.27]
[1642972274347,5.03331577,2409.4,2408.7,24.27]
[1642972274549,0.3,2409.4,2408.7,24.27]
[1642972274747,5.33331577,2409.4,2408.7,24.27]
[1642972274953,5.03331577,2409.4,2408.7,24.27]
[1642972275549,1.0727951,2409.2,2408.7,24.27]
[1642972275977,5.33331577,2409.5,2408.7,24.27]
[1642972276179,5.03331577,2409.6,2408.7,24.27]
[1642972276381,5.03331577,2409.6,2408.8,0.20626]
[1642972276579,3.8461,2409.8,2408.8,0.20626]
[1642972276580,5.03331577,2409.7,2408.8,24.77626]
[1642972276980,0.95361075,2409.3,2408.8,24.77626]
[1642972277182,4.98331577,2409.7,2409.2,1.52698543]
[1642972277582,4.98331577,2409.7,2409.2,1.82698543]
[1642972277777,4.98331577,2409.7,2409.2,1.52698543]
[1642972277980,7.8714064,2410.1,2409.2,1.52698543]
[1642972278184,9.18922905,2410.1,2409.2,1.52698543]
[1642972278386,1.09599114,2410.0,2409.2,1.52698543]
[1642972278586,1.07387506,2410.0,2409.2,1.52698543]
[1642972278988,1.07387506,2410.0,2408.9,0.20626]
[1642972279186,1.07387506,2410.0,2408.7,0.166]
[1642972279187,2.19062651,2409.9,2408.7,0.50626]
[1642972279492,2.49062651,2409.9,2408.7,0.20626]
[1642972279726,9.18963291,2409.9,2408.7,0.20626]
[1642972279925,1.10778946,2408.8,2408.7,24.47626]
[1642972280133,10.18963291,2409.9,2408.7,25.92147524]
[1642972280426,7.9990064,2409.9,2408.7,25.92147524]
[1642972280629,2.21734892,2409.8,2408.5,0.21909173]
[1642972280828,2.21734892,2409.8,2408.6,24.27]
[1642972281027,3.21734892,2409.8,2408.6,24.27]
[1642972281230,4.25602892,2409.8,2408.6,24.27]
[1642972281534,0.86294889,2408.8,2408.6,25.78870981]
[1642972281929,0.86294889,2408.8,2408.6,24.27]
[1642972283386,7.53799674,2408.5,2408.4,0.02]
[1642972284383,7.38799674,2408.5,2408.4,0.02]
[1642972284583,7.38799674,2408.5,2408.4,0.22626]
[1642972284783,7.38799674,2408.5,2408.4,0.02]
[1642972285286,7.38799674,2408.5,2408.4,27.31883503]
[1642972285480,7.38799674,2408.5,2408.4,27.11257503]
[1642972285682,7.38799674,2408.5,2408.4,27.31883503]
[1642972285883,7.38799674,2408.5,2408.4,1.51567442]
[1642972287136,7.38799674,2408.5,2408.4,25.78567442]
[1642972287336,7.38799674,2408.5,2408.4,1.51567442]
[1642972289042,7.38799674,2408.5,2408.4,0.02]
[1642972290045,6.20061678,2409.3,2408.5,7.7]
[1642972290253,0.13819997,2409.4,2408.6,0.20626]
[1642972290254,5.02151678,2409.4,2408.6,0.20626]
[1642972290451,5.02151678,2409.4,2408.6,24.47626]
[1642972290645,5.02151678,2409.6,2408.6,24.77626]
[1642972290883,3.6201,2409.7,2408.7,24.27]
[1642972291079,1.14587553,2409.1,2408.5,0.598]
[1642972291280,1.14587553,2409.1,2408.4,0.02]
[1642972292284,1.14587553,2409.1,2408.6,1.21959163]
[1642972292885,1.14587553,2409.1,2408.4,0.02]
[1642972293887,1.14587553,2409.1,2408.6,1.0585312]
[1642972294088,4.8028,2409.7,2408.7,24.27]
[1642972294489,4.8028,2409.7,2408.7,24.77626]
[1642972294724,4.8028,2409.7,2409.2,1.31139266]
[1642972294925,7.0121,2409.9,2409.2,0.89644216]
[1642972295324,3.2017,2409.9,2409.2,0.89644216]
[1642972295631,10.5755064,2410.0,2409.2,0.89644216]
[1642972295632,6.6990064,2410.0,2409.2,0.89644216]
[1642972296223,9.01261298,2410.0,2409.0,0.3]
[1642972296424,9.01261298,2410.0,2408.7,0.50626]
[1642972296723,9.01261298,2410.0,2408.7,0.80426]
[1642972296724,5.03958798,2409.6,2408.7,0.80426]
[1642972297325,0.90452902,2408.9,2408.7,0.80426]
[1642972297529,0.90452902,2408.9,2408.7,1.26882063]
[1642972298485,0.90452902,2408.9,2408.7,25.53882063]
[1642972299686,0.90452902,2408.9,2408.7,1.26882063]
[1642972300286,0.90452902,2408.9,2408.4,0.618]
[1642972300688,0.90452902,2408.9,2408.4,24.888]
[1642972301289,0.90452902,2408.9,2408.4,25.188]
[1642972301490,0.90452902,2408.9,2408.5,1.48037537]
[1642972301689,0.90452902,2408.9,2408.5,25.75037537]
[1642972301888,0.90452902,2408.9,2408.5,1.48037537]
[1642972302536,0.90452902,2408.9,2408.4,0.32]
[1642972303036,0.90452902,2408.9,2408.4,0.02]
[1642972303236,0.92852362,2408.5,2408.4,0.22626]
[1642972303441,2.57693213,2409.2,2408.4,0.22626]
[1642972303442,5.04190633,2409.2,2408.4,0.22626]
[1642972303739,7.05051527,2409.4,2408.4,0.186155]
[1642972303940,5.04190633,2409.1,2408.4,0.186155]
[1642972304142,2.00860894,2409.4,2408.4,0.02]
[1642972304143,5.04190633,2409.0,2408.4,0.02]
[1642972304538,5.34190633,2409.0,2408.4,0.02]
[1642972304739,1.00203852,2408.9,2408.4,0.02]
[1642972306779,2.15137329,2408.8,2408.4,0.02]
[1642972306977,3.21170261,2408.9,2408.4,0.02]
[1642972308078,6.04394485,2408.9,2408.4,0.02]
[1642972308489,1.00203852,2408.9,2408.4,0.02]
[1642972308882,6.04394485,2408.9,2408.4,0.02]
[1642972309086,1.00203852,2408.9,2408.4,0.02]
[1642972309732,5.04190633,2409.1,2408.4,0.02]
[1642972309932,3.2632,2409.5,2408.5,1.73277375]
[1642972309933,5.04190633,2409.2,2408.5,1.73277375]
[1642972310133,3.2632,2409.5,2408.5,26.56051375]
[1642972310134,5.04190633,2409.4,2408.5,26.56051375]
[1642972310334,5.04190633,2409.4,2408.5,26.69451375]
[1642972310532,3.2632,2409.5,2408.5,26.69451375]
[1642972310533,5.04190633,2409.3,2408.5,26.69451375]
[1642972310735,5.04190633,2409.4,2408.5,26.69451375]
[1642972310933,5.04190633,2409.4,2408.5,26.90077375]
[1642972311332,5.04190633,2409.3,2408.5,26.90077375]
[1642972311532,0.84057517,2409.1,2409.0,1.11336299]
[1642972311734,5.04190633,2409.4,2409.0,0.7690515]
[1642972312942,5.04190633,2409.3,2409.0,0.7690515]
[1642972313377,0.90557791,2409.2,2409.0,0.7690515]
[1642972313780,0.90557791,2409.2,2408.7,0.20626]
[1642972315176,0.90557791,2409.2,2408.9,1.11883613]
[1642972316177,0.90557791,2409.2,2408.7,0.20626]
[1642972316383,0.90557791,2409.2,2408.5,0.166]
[1642972316384,0.01234214,2409.1,2408.5,0.166]
[1642972316581,5.04190633,2409.0,2408.5,0.166]
[1642972316777,5.34190633,2409.0,2408.5,0.166]
[1642972316978,5.04190633,2408.9,2408.5,0.166]
[1642972317243,1.07716544,2408.8,2408.5,0.166]
[1642972320658,2.14121391,2408.7,2408.5,0.166]
[1642972320897,2.45506492,2408.7,2408.4,0.02]
[1642972321283,7.50111216,2408.7,2408.4,0.02]
[1642972321484,0.3,2408.7,2408.4,0.02]
[1642972321686,0.3,2408.7,2408.4,0.0138584]
[1642972322486,5.34604724,2408.7,2408.4,0.0138584]
[1642972323189,0.3,2408.7,2408.4,0.0138584]
[1642972323491,5.04604724,2408.6,2408.4,0.0138584]
[1642972323688,5.34604724,2408.7,2408.4,0.0138584]
[1642972323893,5.34604724,2408.7,2408.4,5.84e-05]
[1642972324091,12.7581576,2408.5,2408.4,5.84e-05]
[1642972324295,12.7581576,2408.5,2407.8,0.02]
[1642972324296,1.06948786,2407.9,2407.8,0.02]
[1642972325140,6.03595024,2408.2,2407.8,0.02]
[1642972325540,3.9176416,2408.3,2407.8,0.02]
[1642972326241,1.04476854,2408.0,2407.8,0.02]
[1642972327141,3.9176416,2408.3,2407.8,0.02]
[1642972327344,3.9176416,2408.3,2407.6,1.0674761]
[1642972327546,0.0007416,2408.3,2407.6,25.6374761]
[1642972327753,0.0007416,2408.3,2407.7,0.20626]
[1642972327947,0.0007416,2408.3,2407.8,0.598]
[1642972328144,0.0007416,2408.3,2408.0,2.25918673]
[1642972328392,0.0007416,2408.3,2408.2,32.17626]
[1642972328587,0.0007416,2408.3,2408.2,8.80426]
[1642972329886,0.0007416,2408.3,2408.2,8.50426]
[1642972330087,0.0007416,2408.3,2408.2,7.7]
[1642972330286,0.0007416,2408.3,2408.2,7.90626]
[1642972330490,0.0007416,2408.3,2408.2,7.7]
[1642972330687,0.0007416,2408.3,2408.2,32.17626]
[1642972330888,0.0007416,2408.3,2408.2,7.90626]
[1642972331087,0.0007416,2408.3,2408.2,32.17626]
[1642972331287,0.0007416,2408.3,2408.2,32.47626]
[1642972331687,0.0007416,2408.3,2408.2,8.20626]
[1642972332145,0.0007416,2408.3,2408.0,2.25918673]
[1642972332543,0.0007416,2408.3,2408.0,2.55918673]
[1642972333947,0.0007416,2408.3,2408.0,1.42838671]
[1642972334346,0.0007416,2408.3,2407.8,0.166]
[1642972335550,0.0007416,2408.3,2407.5,0.22626]
[1642972335551,0.0007416,2408.3,2407.6,0.20626]
[1642972335895,0.0007416,2408.3,2407.7,0.20626]
[1642972336186,0.0007416,2408.3,2408.0,0.91370896]
[1642972336585,0.0007416,2408.3,2408.1,1.54683659]
[1642972336786,0.0007416,2408.3,2408.2,26.72189477]
[1642972336990,0.0007416,2408.3,2408.2,25.37426]
[1642972337586,0.0007416,2408.3,2408.2,1.10426]
[1642972337786,0.0007416,2408.3,2408.2,8.80426]
[1642972338988,0.0007416,2408.3,2408.2,1.10426]
[1642972339191,0.0007416,2408.3,2408.2,0.598]
[1642972339388,5.03595024,2409.1,2408.5,1.34236886]
[1642972341237,6.20945431,2409.4,2408.5,1.34236886]
[1642972341432,6.19705024,2409.4,2408.5,1.54862886]
[1642972341634,6.19705024,2409.4,2408.5,1.84862886]
[1642972342034,6.19705024,2409.4,2409.1,1.17459705]
[1642972342234,5.03595024,2409.4,2409.1,0.82445794]
[1642972342640,5.03595024,2409.3,2409.1,0.82445794]
[1642972342834,5.03595024,2409.4,2409.1,0.82445794]
[1642972343038,6.72806299,2409.8,2409.3,0.20626]
[1642972343245,6.72806299,2410.0,2409.3,0.20626]
[1642972343502,6.72806299,2410.3,2409.7,1.00162059]
[1642972343698,6.72806299,2410.4,2410.0,1.47051378]
[1642972343997,6.72806299,2410.4,2410.0,0.65502762]
[1642972344200,6.72806299,2410.4,2409.5,0.20626]
[1642972344396,6.72806299,2410.3,2409.4,0.1658]
[1642972344597,6.72806299,2410.1,2409.1,0.1658]
[1642972344897,6.72806299,2410.1,2409.0,0.20626]
[1642972345099,6.72806299,2410.1,2409.4,1.39585237]
[1642972345501,6.72806299,2410.0,2409.4,1.39585237]
[1642972345906,6.72806299,2410.0,2408.7,3.39496]
[1642972346109,0.01275173,2409.8,2408.7,1.1887]
[1642972346305,0.01275173,2409.8,2408.8,0.16612]
[1642972346604,1.12814944,2409.0,2408.8,0.16612]
[1642972346804,1.12814944,2409.0,2408.4,0.20626]
[1642972347005,12.90298573,2409.8,2408.9,1.12092826]
[1642972347233,1.16785173,2409.8,2408.9,1.12092826]
[1642972347635,1.16785173,2409.8,2408.9,1.42092826]
[1642972347840,4.17669994,2409.9,2409.0,0.20626]
[1642972348037,4.17669994,2409.9,2408.9,3.66264182]
[1642972348038,0.92728479,2409.3,2408.9,1.12092826]
[1642972348737,4.18939269,2409.9,2408.9,1.12092826]
[1642972349735,4.18939269,2409.9,2408.9,2.18517385]
[1642972349736,1.11292255,2409.5,2408.9,2.18517385]
[1642972350141,1.11292255,2409.5,2408.9,2.03517385]
[1642972351191,4.18939269,2409.9,2408.9,2.03517385]
[1642972351390,4.18939269,2409.9,2409.3,1.4278228]
[1642972351591,0.28909269,2409.9,2409.3,1.4278228]
[1642972351792,0.28909269,2409.9,2409.3,1.9340828]
[1642972351992,8.0454,2410.2,2409.3,1.4278228]
[1642972352193,1.2294,2410.2,2409.3,1.4278228]
[1642972352393,1.2294,2410.2,2409.5,1.11522662]
[1642972352596,3.7327,2410.3,2410.0,1.42613468]
[1642972352793,6.75489876,2410.5,2410.0,0.35919786]
[1642972353396,1.08782159,2410.5,2410.0,0.35919786]
[1642972353796,7.8300288,2410.5,2410.0,0.35919786]
[1642972353996,1.08782159,2410.5,2410.0,0.35919786]
[1642972354635,0.01269155,2410.5,2410.0,0.35919786]
[1642972356335,0.95308426,2410.3,2410.0,0.35919786]
[1642972356635,0.01269155,2410.5,2410.0,0.35919786]
[1642972357035,0.01269155,2410.5,2409.4,0.20626]
[1642972358779,0.01269155,2410.5,2409.9,1.35781623]
[1642972358780,0.99210276,2410.3,2409.9,1.35781623]
[1642972359384,0.01269155,2410.5,2409.9,1.35781623]
[1642972359782,0.01269155,2410.5,2409.9,0.61697779]
[1642972361089,7.43,2410.7,2409.9,0.91697779]
[1642972361287,7.43,2410.7,2410.2,0.898795]
[1642972362150,7.43,2410.7,2410.4,24.27]
[1642972362341,1.08923945,2411.2,2410.4,24.4358]
[1642972362538,1.08923945,2411.2,2410.3,1.75546521]
[1642972362738,10.53817158,2411.4,2410.3,1.64692486]
[1642972363139,10.53817158,2411.4,2410.8,1.27135317]
[1642972363339,6.69877158,2411.4,2410.8,1.27135317]
[1642972363550,6.69877158,2411.5,2410.8,1.27135317]
[1642972363743,6.69877158,2411.3,2410.8,1.27135317]
[1642972364043,6.69877158,2411.4,2410.8,1.27135317]
[1642972364549,6.69877158,2411.4,2410.2,0.1658]
[1642972364748,6.71115946,2411.1,2410.2,0.1658]
[1642972365646,1.15448216,2410.4,2410.2,0.1658]
[1642972365884,1.42914562,2410.9,2410.1,1.30324857]
[1642972366285,3.9006,2411.0,2410.1,1.30324857]
[1642972366885,1.09599004,2410.9,2410.2,0.82616205]
[1642972367788,1.09599004,2410.9,2410.5,1.52981533]
[1642972367985,1.09599004,2410.9,2410.5,0.70743809]
[1642972368186,1.09599004,2410.9,2409.9,0.20626]
[1642972368890,0.01238788,2411.1,2410.0,2.21162123]
[1642972369090,0.01238788,2411.1,2410.5,1.21011659]
[1642972369491,0.01238788,2411.1,2410.0,2.52841901]
[1642972369732,0.01238788,2411.1,2410.2,0.94852088]
[1642972369733,0.96536335,2410.8,2410.2,0.94852088]
[1642972370139,0.01238788,2411.1,2410.2,0.94852088]
[1642972370336,14.26697155,2411.3,2410.3,2.42799058]
[1642972370538,14.26697155,2411.3,2410.4,0.1658]
[1642972370539,7.43,2411.3,2410.4,0.1658]
[1642972370735,7.43,2411.3,2410.5,0.20626]
[1642972370934,7.43,2411.3,2410.5,2.4206859]
[1642972371139,7.43,2411.3,2410.6,0.3]
[1642972371335,0.95023445,2411.2,2411.0,1.17111499]
[1642972371539,0.95023445,2411.2,2411.1,0.20626]
[1642972371738,8.7711,2411.7,2411.0,1.17111499]
[1642972371935,3.8395,2411.7,2411.0,1.17111499]
[1642972372641,3.75110114,2411.7,2411.0,1.17111499]
[1642972372842,0.99033372,2411.4,2411.0,0.59984049]
[1642972374589,3.75110114,2411.7,2411.0,0.59984049]
[1642972374987,3.75110114,2411.7,2411.0,0.28095134]
[1642972375686,1.09320834,2411.5,2411.0,0.28095134]
[1642972375890,3.75110114,2411.7,2411.4,1.33536133]
[1642972376088,6.69877158,2411.8,2410.8,0.20626]
[1642972376295,1.0,2411.7,2410.5,0.1658]
[1642972376490,1.0,2411.7,2410.4,5.58796]
[1642972376491,14.42877158,2411.6,2410.4,5.58796]
[1642972376688,7.73,2411.6,2410.4,1.74696]
[1642972376889,1.0,2411.5,2410.4,1.74696]
[1642972377160,0.92542428,2411.4,2411.2,1.45392403]
[1642972377659,0.92542428,2411.4,2410.8,0.20626]
[1642972377857,0.92542428,2411.4,2410.4,0.3]
[1642972378057,0.92542428,2411.4,2410.3,4.36416]
[1642972378458,0.92542428,2411.4,2410.3,0.50626]
[1642972378659,0.92542428,2411.4,2411.1,1.49547775]
[1642972379558,0.92542428,2411.4,2410.3,5.58806]
[1642972379761,0.92542428,2411.4,2410.3,1.73716]
[1642972379960,0.92542428,2411.4,2410.4,2.15485878]
[1642972380263,0.92542428,2411.4,2410.5,0.20626]
[1642972380559,14.12877158,2411.6,2410.6,3.27054456]
[1642972380560,7.43,2411.6,2410.6,3.27054456]
[1642972380762,7.43,2411.6,2410.7,24.47626]
[1642972380988,7.43,2411.6,2410.8,0.1658]
[1642972381188,10.64718831,2411.9,2410.9,0.20626]
[1642972381392,10.64718831,2411.9,2411.0,0.1658]
[1642972381588,6.69877158,2411.8,2411.0,0.1658]
[1642972381787,1.14848548,2411.7,2411.4,1.31517455]
[1642972381988,1.14848548,2411.7,2411.4,0.81277614]
[1642972382188,1.14848548,2411.7,2411.4,1.11277614]
[1642972382390,1.08630309,2411.2,2411.0,0.1658]
[1642972382591,1.08630309,2411.2,2410.9,0.20626]
[1642972382798,1.08630309,2411.2,2410.7,0.09460404]
[1642972382994,0.01220624,2411.3,2410.7,0.09460404]
[1642972383794,0.01220624,2411.3,2410.6,0.20741]
[1642972384393,0.87408807,2411.2,2410.6,1.16312319]
[1642972384639,0.87408807,2411.2,2410.9,1.4680454]
[1642972384844,0.87408807,2411.2,2410.0,1.3e-05]
[1642972384845,9.7,2411.1,2410.0,1.3e-05]
[1642972385150,9.7,2411.1,2409.7,1.0]
[1642972385151,0.01213294,2410.1,2409.7,1.0]
[1642972385351,0.01256546,2409.9,2408.8,0.62259455]
[1642972385551,0.01256546,2409.9,2408.8,9.455e-05]
[1642972385552,0.38507101,2409.8,2408.8,9.455e-05]
[1642972385749,4.3,2408.9,2408.2,1.33597263]
[1642972385948,1.50883478,2408.6,2408.2,0.02188244]
[1642972386147,1.80883478,2408.6,2408.2,0.02]
[1642972386347,0.1653,2408.5,2408.2,0.02]
[1642972386551,0.1653,2408.5,2407.9,0.02]
[1642972386552,7.7,2408.4,2407.9,0.02]
[1642972386748,0.1653,2408.3,2407.9,0.02]
[1642972386947,0.1653,2408.3,2408.0,1.0654119]
[1642972387147,0.1661,2408.7,2408.0,1.0654119]
[1642972387354,3.8858,2409.7,2408.0,1.0654119]
[1642972387355,0.166,2409.1,2408.0,1.0654119]
[1642972387564,1.0,2408.8,2408.0,1.0654119]
[1642972387751,1.0,2408.8,2407.9,25.71392378]
[1642972388055,0.466,2408.7,2407.9,0.186]
[1642972388255,1.0,2408.3,2407.9,0.186]
[1642972388488,1.064,2408.7,2407.9,0.186]
[1642972388691,1.27128,2408.7,2407.9,0.186]
[1642972388887,2.64710641,2408.6,2407.9,0.136]
[1642972389105,2.64710641,2408.6,2407.5,0.02]
[1642972389106,0.97128,2408.5,2407.5,0.02]
[1642972389387,2.0,2408.4,2407.5,0.02]
[1642972389593,0.01228544,2408.2,2407.5,0.02]
[1642972389788,7.7,2408.0,2407.2,2.01]
[1642972389990,1.44714406,2407.6,2407.2,2.01]
[1642972390192,0.6641,2407.9,2407.2,2.01]
[1642972390389,0.6641,2407.9,2407.2,1.96]